fUSD/lending_fUSD_20240505
["ID","MTS","AMOUNT","RATE_DAILY","PERIOD"]
[326463905,1714939896830,-500.0,0.00030958,7]
[326463906,1714939896839,-7153.9,0.00030958,7]
[326463907,1714939896848,-4023.93,0.00030958,7]
[326463908,1714939896858,-584.98,0.00030958,7]
[326463909,1714939896868,-980.31,0.00030958,7]
[326463910,1714939896878,-500.0,0.00030958,7]
[326463911,1714939896887,-168.07773832,0.00030958,7]
[326463912,1714939896897,-500.0,0.00030958,7]
[326463913,1714939896906,-2083.05939222,0.00030958,7]
[326463914,1714939897482,-320.32,0.00030958,7]
[326463915,1714939898792,-1786.4162258,0.00012898,2]
[326463916,1714939898802,-276.16233319,0.00012899,2]
[326463917,1714939898813,-485.97604439,0.00012899,2]
[326463918,1714939898822,-1246.19492949,0.00012899,2]
[326463919,1714939898832,-151.0,0.00013,2]
[326463920,1714939898841,-150.97,0.00014,2]
[326463921,1714939898851,-150.97,0.00014,2]
[326463922,1714939898860,-150.97,0.00014,2]
[326463923,1714939898870,-150.97,0.00014,2]
[326463924,1714939898879,-150.97,0.00014,2]
[326463925,1714939898889,-150.97,0.00014,2]
[326463926,1714939898899,-150.97,0.00014,2]
[326463927,1714939898909,-150.97,0.00014,2]
[326463928,1714939898918,-150.97,0.00014,2]
[326463929,1714939898928,-150.97,0.00014,2]
[326463930,1714939898938,-150.97,0.00014,2]
[326463931,1714939898947,-150.97,0.00014,2]
[326463932,1714939898957,-150.97,0.00014,2]
[326463933,1714939898967,-150.97,0.00014,2]
[326463934,1714939898976,-150.97,0.00014,2]
[326463935,1714939898986,-128.43012041,0.00014,2]
[326463936,1714939899155,-253.16588385,0.00012898,2]
[326463937,1714939899165,-22.53987959,0.00014,2]
[326463938,1714939899175,-150.97,0.00014,2]
[326463939,1714939899185,-150.97,0.00014,2]
[326463940,1714939899196,-150.97,0.00014,2]
[326463941,1714939899206,-150.97,0.00014,2]
[326463942,1714939899221,-150.97,0.00014,2]
[326463943,1714939899232,-60.98937738,0.00014,2]
[326463944,1714939899274,-378.43781625,0.00012898,2]
[326463945,1714939899285,-89.98062262,0.00014,2]
[326463946,1714939899297,-150.97,0.00014,2]
[326463947,1714939899310,-123.63325754,0.00014,2]
[326463948,1714939899323,-27.33674246,0.00014,2]
[326463949,1714939899334,-150.97,0.00014,2]
[326463950,1714939899344,-150.97,0.00014,2]
[326463951,1714939899354,-150.97,0.00014,2]
[326463952,1714939899364,-150.97,0.00014,2]
[326463953,1714939899374,-8.78325754,0.00014,2]
[326463984,1714941031976,-750.17982827,0.00012477,2]
[326463985,1714941031986,-743.12964032,0.00012478,2]
[326463986,1714941031998,-45.05256069,0.00012478,2]
[326463987,1714941032007,-4824.81949963,0.00012478,2]
[326463988,1714941032040,-440.64334802,0.00012478,2]
[326463989,1714941032050,-1246.19492949,0.00012479,2]
[326463990,1714941032059,-155.0,0.0001248,2]
[326463991,1714941032070,-208.17791052,0.0001248,2]
[326463992,1714941032080,-167.58743393,0.0001248,2]
[326463993,1714941032090,-979.39041089,0.00012481,2]
[326463994,1714941032101,-299.99,0.00012481,2]
[326463995,1714941032113,-1848.33175996,0.00012481,2]
[326463996,1714941032136,-1500.0,0.00012481,2]
[326463997,1714941032147,-280.83854349,0.00012481,2]
[326463998,1714941032159,-304.08095043,0.00012481,2]
[326463999,1714941032168,-171.06171808,0.00012495,2]
[326464000,1714941032178,-1669.31458017,0.000126,2]
[326464001,1714941032190,-117.15067142,0.000126,2]
[326464002,1714941032199,-683.929231,0.000127,2]
[326464003,1714941032211,-2675.70432326,0.000127,2]
[326464004,1714941032220,-5371.83989427,0.00012878,2]
[326464009,1714941032346,-972.76574595,0.00012878,2]
[326464012,1714941032358,-479.84771151,0.00012878,2]
[326464015,1714941032373,-3128.37388449,0.00012878,2]
[326464016,1714941032383,-217.18446267,0.00012897,2]
[326464017,1714941032393,-898.28572361,0.00012897,2]
[326464018,1714941032404,-3150.88332383,0.00012897,2]
[326464019,1714941032414,-749.21355962,0.00012898,2]
[326464020,1714941032424,-159.6029597,0.00012898,2]
[326464021,1714941032433,-2416.67246379,0.00012898,2]
[326464022,1714941032443,-511.37685572,0.00012898,2]
[326464023,1714941032452,-648.1780212,0.00013999,2]
[326464024,1714941032462,-361.66236523,0.00014,2]
[326464025,1714941032471,-20193.97145337,0.00014,2]
[326464026,1714941032481,-145232.35899764,0.00014,2]
[326464027,1714941032504,-10.01627057,0.00014,2]
[326464031,1714941038065,-6883.69329394,0.00014,2]
[326464032,1714941038099,-930.370611,0.00014,2]
[326464033,1714941038169,-320.250819,0.00014,2]
[326464034,1714941038240,-1509.11685064,0.00014,2]
[326464035,1714941038307,-5779.51992,0.00014,2]
[326464037,1714941039957,-280.26021866,0.00014,2]
[326464038,1714941039970,-1478.532,0.00014,2]
[326464039,1714941040755,-457.20210938,0.00014,2]
[326464040,1714941040767,-406.7734298,0.00014,2]
[326464041,1714941040779,-2723.68358874,0.00014,2]
[326464042,1714941040823,-1708.29867584,0.00014,2]
[326464043,1714941040836,-2353.03979489,0.00014,2]
[326464044,1714941040846,-1766.58789095,0.00015,2]
[326464045,1714941040856,-499.99,0.00015,2]
[326464046,1714941040866,-150.99,0.00015,2]
[326464047,1714941040876,-1225.21326046,0.000165,2]
[326464048,1714941040885,-1196.1099068,0.00016854,2]
[326464049,1714941040895,-171.06171805,0.00016855,2]
[326464053,1714941041172,-278.84,0.00017296,2]
[326464055,1714941041189,-450.0,0.00018,3]
[326464057,1714941041199,-154.13,0.00019178,2]
[326464059,1714941041209,-500.0,0.0002,3]
[326464061,1714941041219,-1769.36965514,0.0002,2]
[326464063,1714941041229,-527.0,0.000205,2]
[326464065,1714941041238,-155.0,0.000209,2]
[326464066,1714941041249,-716.58965222,0.00021,2]
[326464067,1714941041259,-171.06171805,0.00021214,2]
[326464068,1714941041269,-7391.97121446,0.00021749,2]
[326464069,1714941041311,-16508.02878554,0.00021749,2]
[326464070,1714941041324,-550.0,0.00022,3]
[326464071,1714941041334,-150.0,0.0002208,2]
[326464072,1714941041344,-250.0,0.00022276,2]
[326464073,1714941041355,-1749.0834379,0.00022524,2]
[326464074,1714941041365,-2000.93957158,0.000234,2]
[326464075,1714941041374,-200.0,0.00023629,2]
[326464076,1714941041384,-153.98,0.00023661,2]
[326464077,1714941041394,-500.0,0.00023748,2]
[326464078,1714941041403,-200.0,0.00023784,2]
[326464079,1714941041413,-600.0,0.00024,3]
[326464080,1714941041422,-159.9,0.000241,2]
[326464081,1714941041432,-250.0,0.00024145,2]
[326464082,1714941041441,-250.0,0.00024145,2]
[326464083,1714941041451,-1663.1,0.00024145,2]
[326464084,1714941041461,-400.0,0.00024428,2]
[326464085,1714941041471,-304.96878339,0.00025,2]
[326464086,1714941041481,-2218.26332743,0.00025,2]
[326464087,1714941041491,-1000.0,0.00025066,2]
[326464088,1714941041500,-800.0,0.00025178,2]
[326464089,1714941041510,-171.06171805,0.00025574,2]
[326464090,1714941041519,-650.0,0.00026,3]
[326464091,1714941041529,-326.54378188,0.00026022,2]
[326464092,1714941041539,-159.17705713,0.00026476,2]
[326464093,1714941041548,-911.93,0.00026522,2]
[326464094,1714941041557,-414.53,0.00026522,2]
[326464095,1714941041569,-167.0,0.00026588,2]
[326464096,1714941041579,-159.17705713,0.00026671,2]
[326464097,1714941041588,-157.64275011,0.0002673,2]
[326464098,1714941041603,-159.17705713,0.00026765,2]
[326464099,1714941041613,-155.95646157,0.00026993,2]
[326464100,1714941041623,-160.5,0.00027068,15]
[326464101,1714941041632,-155.46836759,0.00027371,2]
[326464102,1714941041642,-150.23,0.00027397,2]
[326464103,1714941041652,-167.0,0.00027466,2]
[326464104,1714941041663,-400.0,0.00027481,120]
[326464105,1714941041673,-153.98,0.00027604,120]
[326464106,1714941041688,-155.46836759,0.0002761,2]
[326464107,1714941041699,-700.0,0.00028,3]
[326464108,1714941041709,-155.46836759,0.00028071,2]
[326464109,1714941041719,-1000.0,0.00028199,2]
[326464110,1714941041733,-154.0,0.0002828,24]
[326464111,1714941041743,-167.0,0.00028343,2]
[326464112,1714941041753,-1000.0,0.00028467,2]
[326464113,1714941041764,-278.84,0.00028529,2]
[326464114,1714941041775,-200.0,0.00028541,7]
[326464115,1714941041784,-17512.68807479,0.00028567,2]
[326464116,1714941041805,-840.71707407,0.00028567,2]
[326464135,1714941043140,-1136.86875114,0.00028567,2]
[326464136,1714941043150,-14952.3709,0.00028567,3]
[326464137,1714941043160,-8220.8275,0.00028667,2]
[326464138,1714941043170,-1876.7957,0.00028667,2]
[326464139,1714941043180,-156.24253752,0.00028743,2]
[326464140,1714941043189,-888.0,0.00028767,5]
[326464141,1714941043198,-626.46,0.00028767,2]
[326464142,1714941043209,-626.46,0.00028767,2]
[326464143,1714941043219,-626.46,0.00028767,2]
[326464144,1714941043229,-626.46,0.00028767,2]
[326464145,1714941043239,-626.46,0.00028767,2]
[326464146,1714941043249,-626.46,0.00028767,2]
[326464147,1714941043258,-626.46,0.00028767,2]
[326464148,1714941043268,-626.46,0.00028767,2]
[326464149,1714941043278,-626.46,0.00028767,2]
[326464150,1714941043287,-626.46,0.00028767,2]
[326464151,1714941043297,-626.46,0.00028767,2]
[326464152,1714941043307,-626.46,0.00028767,2]
[326464153,1714941043318,-626.46,0.00028767,2]
[326464154,1714941043327,-626.46,0.00028767,2]
[326464155,1714941043337,-626.46,0.00028767,2]
[326464156,1714941043347,-626.46,0.00028767,2]
[326464157,1714941043356,-626.46,0.00028767,2]
[326464158,1714941043366,-626.46,0.00028767,2]
[326464159,1714941043375,-626.46,0.00028767,2]
[326464160,1714941043386,-626.46,0.00028767,2]
[326464161,1714941043396,-626.46,0.00028767,2]
[326464162,1714941043406,-626.46,0.00028767,2]
[326464163,1714941043415,-626.46,0.00028767,2]
[326464164,1714941043425,-626.51,0.00028767,2]
[326464165,1714941043434,-150.0,0.000289,2]
[326464166,1714941043444,-150.75,0.0002899,2]
[326464167,1714941043453,-150.75,0.0002899,2]
[326464168,1714941043462,-150.75,0.0002899,2]
[326464169,1714941043472,-150.75,0.0002899,2]
[326464170,1714941043481,-150.75,0.0002899,2]
[326464171,1714941043492,-150.75,0.0002899,2]
[326464172,1714941043501,-150.75,0.0002899,2]
[326464173,1714941043511,-150.75,0.0002899,2]
[326464174,1714941043520,-154.13,0.00028995,2]
[326464175,1714941043530,-1000.0,0.00028998,2]
[326464176,1714941043539,-500.0,0.00028998,2]
[326464177,1714941043550,-19499.51467127,0.00028999,2]
[326464178,1714941043559,-109767.7785986,0.00029,7]
[326464179,1714941043569,-517114.57678856,0.00029,2]
[326464180,1714941043590,-2475.64,0.00029,2]
[326464181,1714941043606,-14995.75485655,0.00029,2]
[326464191,1714941046260,-788.18220101,0.00013999,2]
[326464192,1714941046270,-167.58743393,0.00013999,2]
[326464193,1714941046280,-155.0,0.00013999,2]
[326464194,1714941046290,-20193.97145337,0.00014,2]
[326464195,1714941046300,-1227.0,0.00028285,2]
[326464196,1714941046310,-15354.40048137,0.00029,2]
[326464197,1714941046324,-968.41040589,0.00029,2]
[326464198,1714941046334,-1257.26,0.00029,2]
[326464199,1714941046376,-296.26673161,0.00029,2]
[326464200,1714941046387,-905.72771757,0.00029,2]
[326464201,1714941046409,-306.21779093,0.00029,2]
[326464202,1714941046425,-483.87719183,0.00029,2]
[326464203,1714941046439,-1372.13278,0.00029,2]
[326464218,1714941270784,6300.0,6.94e-05,2]
[326464219,1714941270808,24527.22270808,6.94e-05,2]
[326464221,1714941342463,361.66236523,6.94e-05,2]
[326464222,1714941346909,593.54104206,6.94e-05,2]
[326464223,1714941358754,150.0,6.94e-05,2]
[326464224,1714941358783,150.0,6.94e-05,2]
[326464225,1714941358813,61.66236523,6.94e-05,2]
[326464226,1714941359099,88.33763477,6.94e-05,2]
[326464227,1714941359127,150.0,6.94e-05,2]
[326464228,1714941359156,150.0,6.94e-05,2]
[326464229,1714941359185,106.27990028,6.94e-05,2]
[326464231,1714941374533,150.0,6.94e-05,2]
[326464232,1714941374554,150.0,6.94e-05,2]
[326464233,1714941374576,61.66236523,6.94e-05,2]
[326464234,1714941376905,257.69573576,6.94e-05,2]
[326464235,1714941392913,150.0,6.94e-05,2]
[326464236,1714941392935,107.69573576,6.94e-05,2]
[326464237,1714941394730,150.0,6.94e-05,2]
[326464238,1714941394752,150.0,6.94e-05,2]
[326464239,1714941394774,31.53650875,6.94e-05,2]
[326464240,1714941410915,150.0,6.94e-05,2]
[326464241,1714941410936,107.69573576,6.94e-05,2]
[326464242,1714941434971,150.0,6.94e-05,2]
[326464243,1714941434993,107.69573576,6.94e-05,2]
[326464246,1714941442745,150.0,6.94e-05,2]
[326464247,1714941442768,23.26212603,6.94e-05,2]
[326464248,1714941464754,150.0,6.94e-05,2]
[326464249,1714941464778,23.25537018,6.94e-05,2]
[326464252,1714941483029,150.0,5.205e-05,2]
[326464253,1714941483051,150.0,5.205e-05,2]
[326464254,1714941483072,150.0,5.205e-05,2]
[326464255,1714941483093,150.0,5.205e-05,2]
[326464256,1714941495041,600.0,5.205e-05,2]
[326464295,1714942232098,-5212.63166477,0.00010829,2]
[326464296,1714942232108,-1786.4162258,0.00010829,2]
[326464297,1714942232117,-5265.46284765,0.0001083,2]
[326464298,1714942232126,-4270.37766422,0.0001083,2]
[326464299,1714942232135,-216.35410863,0.0001083,2]
[326464300,1714942232144,-3004.06447303,0.00010831,2]
[326464301,1714942232153,-155.0,0.00010831,2]
[326464302,1714942232162,-167.58743393,0.00010832,2]
[326464303,1714942232171,-1246.19492949,0.00010832,2]
[326464304,1714942232180,-3279.04154518,0.00010832,2]
[326464305,1714942232189,-207.05329635,0.00010833,2]
[326464306,1714942232198,-486.9255184,0.00010834,2]
[326464307,1714942232207,-486.92551838,0.00010835,2]
[326464308,1714942232216,-486.92551838,0.00010835,2]
[326464309,1714942232225,-35301.51536388,0.00010931,2]
[326464310,1714942232235,-295.26001876,0.00010942,2]
[326464311,1714942232243,-120425.16208134,0.00011041,2]
[326464312,1714942232267,-22403.27229486,0.00011041,2]
[326464313,1714942232279,-23310.22619412,0.00011041,2]
[326464314,1714942232291,-61964.03807147,0.00011041,2]
[326464315,1714942232302,-5004.24,0.00011041,2]
[326464316,1714942232313,-2232.7696939,0.00011041,2]
[326464317,1714942232339,-4611.58520454,0.00011041,2]
[326464318,1714942232350,-10143.62111693,0.00011041,2]
[326464320,1714942232360,-729.17505839,0.00011041,2]
[326464322,1714942232371,-578.5596183,0.00011041,2]
[326464324,1714942232381,-2274.26238943,0.00011041,2]
[326464326,1714942232392,-1178.45951756,0.00011041,2]
[326464332,1714942232432,-377813.66602574,0.00011041,2]
[326464336,1714942232458,-2275.48656386,0.00011041,2]
[326464340,1714942232493,-1133.16129937,0.00011041,2]
[326464950,1714942238332,-234.69981702,0.0001073,2]
[326464952,1714942238341,-322.99210998,0.00011041,2]
[326464978,1714942238584,-275.697,0.00011041,2]
[326464982,1714942238607,-748.34155191,0.00011041,2]
[326464984,1714942238618,-319.315,0.00011041,2]
[326465259,1714942240875,-49331.45795459,0.00011041,2]
[326465261,1714942240884,-109450.965762,0.00011042,2]
[326465263,1714942240894,-150.0,0.00011151,2]
[326465265,1714942240903,-200.0,0.00011542,2]
[326465267,1714942240912,-23900.0,0.00011658,2]
[326465269,1714942240921,-208.17791052,0.00011692,2]
[326465271,1714942240930,-155.6096,0.00011697,2]
[326465273,1714942240944,-3992.06059689,0.000118,2]
[326465275,1714942240953,-224.99,0.000119,2]
[326465277,1714942240962,-269.33,0.00011997,2]
[326465279,1714942240972,-156.49490382,0.00011997,2]
[326465281,1714942240982,-276.16233319,0.00011997,2]
[326465283,1714942240992,-485.97604439,0.00011997,2]
[326465285,1714942241001,-2180.17335597,0.00011998,2]
[326465287,1714942241014,-4416.37705959,0.00011999,2]
[326465289,1714942241023,-155.16352534,0.00011999,2]
[326465291,1714942241033,-155.0,0.00011999,2]
[326465293,1714942241043,-15001.17923307,0.00012,2]
[326465295,1714942241053,-577.54,0.00012055,2]
[326465297,1714942241063,-14646.9,0.00012071,2]
[326465299,1714942241073,-150.0,0.00012385,2]
[326465301,1714942241083,-250.0,0.00012385,2]
[326465303,1714942241093,-1352.42,0.0001256,2]
[326465305,1714942241103,-345.75703868,0.000129,2]
[326465308,1714942241112,-201.02497943,0.000129,2]
[326465309,1714942241121,-217.21716462,0.000129,2]
[326465311,1714942241131,-973.9903754,0.000129,2]
[326465314,1714942241140,-973.99037537,0.000129,2]
[326465316,1714942241149,-217.21716458,0.00012925,2]
[326465317,1714942241159,-217.21716458,0.00012951,2]
[326465319,1714942241168,-217.21716458,0.00012976,2]
[326465321,1714942241178,-5364727.00842381,0.00013,2]
[326465323,1714942241187,-1764848.85381624,0.00013,2]
[326465484,1714942243496,-165.70238202,0.000129,2]
[326465485,1714942243506,-1241.09961087,0.00012999,2]
[326465486,1714942243515,-742590.73648219,0.00013,2]
[326465488,1714942243569,-32016.405,0.00013,2]
[326465516,1714942246221,-630.3582,0.000129,2]
[326465517,1714942246241,-343.63217537,0.000129,2]
[326465518,1714942246251,-167.58743393,0.00012998,2]
[326465519,1714942246260,-90.71756758,0.00012999,2]
[326465520,1714942246330,-38.72965328,0.00012999,2]
[326465521,1714942246342,-424.9784714,0.00012999,2]
[326465522,1714942246351,-5265.46284765,0.00012999,2]
[326465523,1714942246360,-111834.84378281,0.00013,2]
[326465524,1714942246371,-125084.59532867,0.00013,2]
[326465525,1714942246387,-897.58999998,0.00013,2]
[326465526,1714942246410,-97216.99936999,0.00013,2]
[326465527,1714942246422,-349.84000744,0.00013,2]
[326465528,1714942246433,-7104.6828428,0.00013,2]
[326465529,1714942246443,-18851.00381999,0.00013,2]
[326465652,1714943158535,-207.05329635,0.00010251,2]
[326465653,1714943158556,-155.0,0.00010252,2]
[326465654,1714943158650,-3637.94670365,0.00010253,2]
[326465655,1714943158965,-1574.68496112,0.00010253,2]
[326465656,1714943158986,-2425.31503888,0.00010254,2]
[326465657,1714943159338,-578.74943415,0.00010254,2]
[326465658,1714943159358,-155.0,0.00010254,2]
[326465659,1714943159381,-3266.25056585,0.00010254,2]
[326465660,1714943159906,-4000.0,0.00010254,2]
[326465661,1714943160406,-4000.0,0.00010254,2]
[326465662,1714943161006,-4000.0,0.00010254,2]
[326465663,1714943161979,-4000.0,0.00010254,2]
[326465664,1714943162040,-4000.0,0.00010254,2]
[326465665,1714943162567,-3279.04154518,0.00010252,2]
[326465666,1714943162590,-720.95845482,0.00010254,2]
[326465667,1714943170722,-155.0,0.00010249,2]
[326465668,1714943170746,-324.27594836,0.0001025,2]
[326465669,1714943170769,-155.0,0.0001025,2]
[326465670,1714943170791,-162.31182159,0.00010253,2]
[326465671,1714943170815,-299.01923005,0.00010254,2]
[326465725,1714943431452,-5002.62750254,9.226e-05,2]
[326465727,1714943431464,-654.28007,9.226e-05,2]
[326465741,1714943431646,-264.25996,9.226e-05,2]
[326465742,1714943431658,-313.92509782,9.226e-05,2]
[326465744,1714943431684,-5000.0,9.226e-05,2]
[326465745,1714943431695,-1416.44223708,9.226e-05,2]
[326465746,1714943431707,-740.74591032,9.226e-05,2]
[326465747,1714943431718,-1084.00000008,9.226e-05,2]
[326465748,1714943431729,-1440.00014,9.226e-05,2]
[326465749,1714943431741,-606.90853724,9.226e-05,2]
[326465750,1714943431752,-439.26345444,9.226e-05,2]
[326465751,1714943431763,-5833.2619987,9.226e-05,2]
[326465752,1714943431772,-4270.37766422,9.227e-05,2]
[326465753,1714943431781,-2301.26407995,9.228e-05,2]
[326465754,1714943431790,-423.1768076,9.229e-05,2]
[326465755,1714943431800,-865.9150477,9.744e-05,2]
[326465756,1714943431809,-1852.0,9.749e-05,2]
[326465757,1714943431818,-1103.33259888,9.75e-05,2]
[326465758,1714943431827,-1500.0,9.782e-05,2]
[326465759,1714943431836,-750.0,9.841e-05,2]
[326465760,1714943431844,-155.0,0.00010039,2]
[326465761,1714943431854,-207.05329635,0.0001004,2]
[326465762,1714943431864,-3004.06447303,0.0001004,2]
[326465763,1714943431873,-652.26,0.00010041,2]
[326465764,1714943431881,-153.43,0.00010081,2]
[326465765,1714943431890,-5212.63166477,0.00010141,2]
[326465766,1714943431899,-1661.77,0.00010142,2]
[326465767,1714943431908,-2185.73081459,0.00010152,2]
[326465768,1714943431917,-321.02,0.00010152,2]
[326465769,1714943431926,-15217.2156,0.00010153,2]
[326465770,1714943431935,-153.43,0.00010156,2]
[326465771,1714943431944,-200.0,0.00010169,2]
[326465772,1714943431954,-2497.44,0.00010195,2]
[326465773,1714943431963,-499.99,0.00010195,2]
[326465774,1714943431972,-153.43,0.00010231,2]
[326465775,1714943431983,-7167.25698134,0.00010254,2]
[326465776,1714943431992,-298.47108253,0.00010254,2]
[326465777,1714943432001,-366.21185913,0.00010254,2]
[326465778,1714943432013,-10773.87791607,0.00010254,2]
[326465779,1714943432022,-13407.1134616,0.00010254,2]
[326465780,1714943432032,-1290.1483477,0.00010254,2]
[326465781,1714943432041,-241.54,0.00010262,2]
[326465782,1714943432051,-153.43,0.00010306,2]
[326465783,1714943432061,-342.6,0.00010321,2]
[326465784,1714943432070,-1000.0,0.00010352,2]
[326465785,1714943432082,-1831.97,0.00010353,2]
[326465786,1714943432091,-304.56,0.00010369,2]
[326465787,1714943432100,-153.43,0.00010381,2]
[326465788,1714943432109,-165.31,0.00010392,2]
[326465789,1714943432119,-250.0,0.00010392,2]
[326465791,1714943432128,-1859.61,0.00010418,2]
[326465792,1714943432138,-153.43,0.00010456,2]
[326465793,1714943432146,-155.0,0.0001053,2]
[326465794,1714943432156,-153.43,0.00010531,2]
[326465795,1714943432165,-153.43,0.00010606,2]
[326465796,1714943432174,-155.0,0.00010701,2]
[326465797,1714943432183,-155.0,0.00010796,2]
[326465798,1714943432193,-5931.72,0.00010959,2]
[326465799,1714943432202,-150.0,0.00010959,2]
[326465800,1714943432211,-23900.0,0.00011029,2]
[326465801,1714943432220,-321.02,0.00011421,2]
[326465802,1714943432230,-1000.0,0.00011583,2]
[326465803,1714943432239,-165.38,0.00011648,2]
[326465804,1714943432248,-256.24807285,0.00011756,2]
[326465805,1714943432257,-2803.8621,0.00011798,2]
[326465806,1714943432268,-197.45,0.00011801,2]
[326465807,1714943432277,-3365.0344,0.00011898,2]
[326465808,1714943432287,-400.4004,0.00011898,2]
[326465809,1714943432296,-1000.0,0.00011898,2]
[326465810,1714943432306,-1136.8688,0.00011898,2]
[326465811,1714943432316,-2500.0,0.00011898,2]
[326465812,1714943432326,-199.18907554,0.000119,2]
[326465813,1714943432339,-204.69428143,0.00011988,2]
[326465814,1714943432348,-684.85937217,0.00011996,2]
[326465815,1714943432357,-554.84517864,0.00011996,2]
[326465816,1714943432367,-324.0890106,0.00011996,2]
[326465817,1714943432377,-162.11231848,0.00011996,2]
[326465818,1714943432387,-155.0,0.00011997,2]
[326465819,1714943432397,-10848.73216925,0.00011998,2]
[326465820,1714943432412,-443037.39897923,0.00011998,2]
[326465821,1714943432421,-7214.2758574,0.00012,2]
[326465822,1714943432430,-167.68,0.00012033,2]
[326465823,1714943432440,-150.0,0.00012256,2]
[326465824,1714943432449,-150.0,0.00012278,2]
[326465825,1714943432459,-321.02,0.0001269,2]
[326465826,1714943432468,-995.99194207,0.00012815,2]
[326465827,1714943432478,-1560.96410363,0.00012863,2]
[326465828,1714943432487,-628.62133927,0.000129,2]
[326465829,1714943432496,-1496.66390248,0.000129,2]
[326465830,1714943432505,-451.67261839,0.000129,2]
[326465831,1714943432515,-17157.67631405,0.00012901,2]
[326465832,1714943432530,-13748.32483707,0.00012901,2]
[326465858,1714943437452,-155.0,9.226e-05,2]
[326465859,1714943437462,-1785.98076718,0.00011996,2]
[326465860,1714943437471,-389.45827402,0.00012901,2]
[326465861,1714943437707,-4801.45021579,0.00012901,2]
[326465862,1714943437716,-158.79165808,0.00012901,2]
[326465863,1714943437725,-165.70238202,0.00012939,2]
[326465864,1714943437735,-165.70238202,0.00012978,2]
[326465866,1714943437745,-4587.97821425,0.00012986,2]
[326465867,1714943437755,-4547.4383287,0.00012988,2]
[326465868,1714943437764,-165.31,0.0001299,2]
[326465869,1714943437773,-4577.62681914,0.00012991,2]
[326465870,1714943437784,-319.265,0.00012991,2]
[326465871,1714943437795,-209.93850476,0.00012991,2]
[326465872,1714943437804,-182.95215444,0.00012997,2]
[326465873,1714943437813,-1241.09961087,0.00012997,2]
[326465874,1714943437822,-155.0,0.00012998,2]
[326465875,1714943437832,-1160.44452886,0.00012998,2]
[326465905,1714943439656,-313.92173404,0.00012998,2]
[326465906,1714943439668,-641.26316,0.00012998,2]
[326465907,1714943439679,-242.23105719,0.00012998,2]
[326465908,1714943439688,-502.29836421,0.00012998,2]
[326465909,1714943439775,-279.83802373,0.00012998,2]
[326465910,1714943439785,-177.42977262,0.00012998,2]
[326465911,1714943439795,-390.08529584,0.00012998,2]
[326465912,1714943439804,-216.18183944,0.00012999,2]
[326465913,1714943439814,-7663.58396929,0.00013,2]
[326465914,1714943439828,-48155.68703514,0.00013,2]
[326465915,1714943439842,-32883.87290822,0.00013,2]
[326465916,1714943439871,-1016.99288808,0.00013,2]
[326465917,1714943439885,-2040.2802,0.00013,2]
[326465936,1714943442513,-417.95220767,0.00012999,2]
[326465943,1714943442610,-6790.78450001,0.00012999,2]
[326465944,1714943442622,-4515.88976331,0.00012999,2]
[326465945,1714943442633,-7604.90209074,0.00013,2]
[326465946,1714943442648,-743831.83609306,0.00013,2]
[326465947,1714943442729,-2978.93039767,0.00013,2]
[326466008,1714943446045,-423.1768076,9.229e-05,2]
[326466009,1714943446054,-366.21185913,0.00010254,2]
[326466010,1714943446064,-1039.6899587,0.000129,2]
[326466011,1714943446073,-124046.49385256,0.00013,2]
[326466012,1714943446084,-18941.47278,0.00013,2]
[326466013,1714943446155,-6330.80166557,0.00013,2]
[326466018,1714944390411,500.0,0.00025008,120]
[326466019,1714944416239,500.0,0.0002501,120]
[326466021,1714944435600,500.0,0.000251,120]
[326466023,1714944482568,1000.0,0.000251,120]
[326466024,1714944521831,1000.0,0.0002509,120]